{"text_format":"1","workbook":"xlsx","n_sheets":4,"sheets":["Sheet1","Sheet2","Pom","ABC Modul"],"not_rendered":{"charts":0,"images":0,"macros":1,"external_links":0,"defined_names":1,"comments":0,"pivot_tables":0},"unopened":[],"bounds":{"document_bytes":16777216,"sheet_cells":100000,"rows_first":2000,"rows_last":500,"rows_between":2000,"halvings":0,"cell_chars":16384,"cell_head_chars":4096},"cells_cut":0,"cells_raw":0,"read":"whole","date_system":"1900"}

{"sheet":"Sheet1","index":0,"n_rows":6,"n_cols":3,"rows_kept":6,"cut":false,"hidden":false,"merged":[]}
[]
[null,"A"]
[]
[null,"B"]
[]
[null,"C",{"$f":"IF(OR(ISBLANK(C2),ISBLANK(C4)),0,IFERROR(VLOOKUP(Sheet1!C2&\", \"&Sheet1!C4,TabRezultati,4,FALSE),-1))","v":0}]

{"sheet":"Sheet2","index":1,"n_rows":36,"n_cols":3,"rows_kept":36,"cut":false,"hidden":true,"merged":[]}
[1,2,{"$f":"IF(OR(ISBLANK(A1),ISBLANK(B1)),0,IFERROR(VLOOKUP(Sheet2!A1&\", \"&Sheet2!B1,TabRezultati,4,FALSE),-1))","v":2}]
[1,1,{"$f":"IF(OR(ISBLANK(A2),ISBLANK(B2)),0,IFERROR(VLOOKUP(Sheet2!A2&\", \"&Sheet2!B2,TabRezultati,4,FALSE),-1))","v":3}]
[3,5,{"$f":"IF(OR(ISBLANK(A3),ISBLANK(B3)),0,IFERROR(VLOOKUP(Sheet2!A3&\", \"&Sheet2!B3,TabRezultati,4,FALSE),-1))","v":2}]
[null,null,{"$f":"IF(OR(ISBLANK(A4),ISBLANK(B4)),0,IFERROR(VLOOKUP(Sheet2!A4&\", \"&Sheet2!B4,TabRezultati,4,FALSE),-1))","v":0}]
[null,null,{"$f":"IF(OR(ISBLANK(A5),ISBLANK(B5)),0,IFERROR(VLOOKUP(Sheet2!A5&\", \"&Sheet2!B5,TabRezultati,4,FALSE),-1))","v":0}]
[null,null,{"$f":"IF(OR(ISBLANK(A6),ISBLANK(B6)),0,IFERROR(VLOOKUP(Sheet2!A6&\", \"&Sheet2!B6,TabRezultati,4,FALSE),-1))","v":0}]
[null,null,{"$f":"IF(OR(ISBLANK(A7),ISBLANK(B7)),0,IFERROR(VLOOKUP(Sheet2!A7&\", \"&Sheet2!B7,TabRezultati,4,FALSE),-1))","v":0}]
[null,null,{"$f":"IF(OR(ISBLANK(A8),ISBLANK(B8)),0,IFERROR(VLOOKUP(Sheet2!A8&\", \"&Sheet2!B8,TabRezultati,4,FALSE),-1))","v":0}]
[null,null,{"$f":"IF(OR(ISBLANK(A9),ISBLANK(B9)),0,IFERROR(VLOOKUP(Sheet2!A9&\", \"&Sheet2!B9,TabRezultati,4,FALSE),-1))","v":0}]
[null,null,{"$f":"IF(OR(ISBLANK(A10),ISBLANK(B10)),0,IFERROR(VLOOKUP(Sheet2!A10&\", \"&Sheet2!B10,TabRezultati,4,FALSE),-1))","v":0}]
[null,null,{"$f":"IF(OR(ISBLANK(A11),ISBLANK(B11)),0,IFERROR(VLOOKUP(Sheet2!A11&\", \"&Sheet2!B11,TabRezultati,4,FALSE),-1))","v":0}]
[null,null,{"$f":"IF(OR(ISBLANK(A12),ISBLANK(B12)),0,IFERROR(VLOOKUP(Sheet2!A12&\", \"&Sheet2!B12,TabRezultati,4,FALSE),-1))","v":0}]
[null,null,{"$f":"IF(OR(ISBLANK(A13),ISBLANK(B13)),0,IFERROR(VLOOKUP(Sheet2!A13&\", \"&Sheet2!B13,TabRezultati,4,FALSE),-1))","v":0}]
[null,null,{"$f":"IF(OR(ISBLANK(A14),ISBLANK(B14)),0,IFERROR(VLOOKUP(Sheet2!A14&\", \"&Sheet2!B14,TabRezultati,4,FALSE),-1))","v":0}]
[null,null,{"$f":"IF(OR(ISBLANK(A15),ISBLANK(B15)),0,IFERROR(VLOOKUP(Sheet2!A15&\", \"&Sheet2!B15,TabRezultati,4,FALSE),-1))","v":0}]
[null,null,{"$f":"IF(OR(ISBLANK(A16),ISBLANK(B16)),0,IFERROR(VLOOKUP(Sheet2!A16&\", \"&Sheet2!B16,TabRezultati,4,FALSE),-1))","v":0}]
[null,null,{"$f":"IF(OR(ISBLANK(A17),ISBLANK(B17)),0,IFERROR(VLOOKUP(Sheet2!A17&\", \"&Sheet2!B17,TabRezultati,4,FALSE),-1))","v":0}]
[null,null,{"$f":"IF(OR(ISBLANK(A18),ISBLANK(B18)),0,IFERROR(VLOOKUP(Sheet2!A18&\", \"&Sheet2!B18,TabRezultati,4,FALSE),-1))","v":0}]
[null,null,{"$f":"IF(OR(ISBLANK(A19),ISBLANK(B19)),0,IFERROR(VLOOKUP(Sheet2!A19&\", \"&Sheet2!B19,TabRezultati,4,FALSE),-1))","v":0}]
[null,null,{"$f":"IF(OR(ISBLANK(A20),ISBLANK(B20)),0,IFERROR(VLOOKUP(Sheet2!A20&\", \"&Sheet2!B20,TabRezultati,4,FALSE),-1))","v":0}]
[null,null,{"$f":"IF(OR(ISBLANK(A21),ISBLANK(B21)),0,IFERROR(VLOOKUP(Sheet2!A21&\", \"&Sheet2!B21,TabRezultati,4,FALSE),-1))","v":0}]
[null,null,{"$f":"IF(OR(ISBLANK(A22),ISBLANK(B22)),0,IFERROR(VLOOKUP(Sheet2!A22&\", \"&Sheet2!B22,TabRezultati,4,FALSE),-1))","v":0}]
[null,null,{"$f":"IF(OR(ISBLANK(A23),ISBLANK(B23)),0,IFERROR(VLOOKUP(Sheet2!A23&\", \"&Sheet2!B23,TabRezultati,4,FALSE),-1))","v":0}]
[null,null,{"$f":"IF(OR(ISBLANK(A24),ISBLANK(B24)),0,IFERROR(VLOOKUP(Sheet2!A24&\", \"&Sheet2!B24,TabRezultati,4,FALSE),-1))","v":0}]
[null,null,{"$f":"IF(OR(ISBLANK(A25),ISBLANK(B25)),0,IFERROR(VLOOKUP(Sheet2!A25&\", \"&Sheet2!B25,TabRezultati,4,FALSE),-1))","v":0}]
[null,null,{"$f":"IF(OR(ISBLANK(A26),ISBLANK(B26)),0,IFERROR(VLOOKUP(Sheet2!A26&\", \"&Sheet2!B26,TabRezultati,4,FALSE),-1))","v":0}]
[null,null,{"$f":"IF(OR(ISBLANK(A27),ISBLANK(B27)),0,IFERROR(VLOOKUP(Sheet2!A27&\", \"&Sheet2!B27,TabRezultati,4,FALSE),-1))","v":0}]
[null,null,{"$f":"IF(OR(ISBLANK(A28),ISBLANK(B28)),0,IFERROR(VLOOKUP(Sheet2!A28&\", \"&Sheet2!B28,TabRezultati,4,FALSE),-1))","v":0}]
[null,null,{"$f":"IF(OR(ISBLANK(A29),ISBLANK(B29)),0,IFERROR(VLOOKUP(Sheet2!A29&\", \"&Sheet2!B29,TabRezultati,4,FALSE),-1))","v":0}]
[null,null,{"$f":"IF(OR(ISBLANK(A30),ISBLANK(B30)),0,IFERROR(VLOOKUP(Sheet2!A30&\", \"&Sheet2!B30,TabRezultati,4,FALSE),-1))","v":0}]
[null,null,{"$f":"IF(OR(ISBLANK(A31),ISBLANK(B31)),0,IFERROR(VLOOKUP(Sheet2!A31&\", \"&Sheet2!B31,TabRezultati,4,FALSE),-1))","v":0}]
[null,null,{"$f":"IF(OR(ISBLANK(A32),ISBLANK(B32)),0,IFERROR(VLOOKUP(Sheet2!A32&\", \"&Sheet2!B32,TabRezultati,4,FALSE),-1))","v":0}]
[null,null,{"$f":"IF(OR(ISBLANK(A33),ISBLANK(B33)),0,IFERROR(VLOOKUP(Sheet2!A33&\", \"&Sheet2!B33,TabRezultati,4,FALSE),-1))","v":0}]
[null,null,{"$f":"IF(OR(ISBLANK(A34),ISBLANK(B34)),0,IFERROR(VLOOKUP(Sheet2!A34&\", \"&Sheet2!B34,TabRezultati,4,FALSE),-1))","v":0}]
[null,null,{"$f":"IF(OR(ISBLANK(A35),ISBLANK(B35)),0,IFERROR(VLOOKUP(Sheet2!A35&\", \"&Sheet2!B35,TabRezultati,4,FALSE),-1))","v":0}]
[null,null,{"$f":"IF(OR(ISBLANK(A36),ISBLANK(B36)),0,IFERROR(VLOOKUP(Sheet2!A36&\", \"&Sheet2!B36,TabRezultati,4,FALSE),-1))","v":0}]

{"sheet":"Pom","index":2,"n_rows":26,"n_cols":4,"rows_kept":26,"cut":false,"hidden":false,"merged":[]}
["ParAB","A","B","C"]
[{"$f":"B2&\", \"&C2","v":"1, 1"},1,1,3]
[{"$f":"B3&\", \"&C3","v":"1, 2"},1,2,2]
["1, 3",1,3,1]
["1, 4",1,4,1]
["1, 5",1,5,1]
["2, 1",2,1,4]
["2, 2",2,2,3]
["2, 3",2,3,2]
["2, 4",2,4,2]
["2, 5",2,5,1]
["3, 1",3,1,5]
["3, 2",3,2,4]
["3, 3",3,3,3]
["3, 4",3,4,2]
["3, 5",3,5,2]
["4, 1",4,1,5]
["4, 2",4,2,4]
["4, 3",4,3,3]
["4, 4",4,4,3]
["4, 5",4,5,3]
["5, 1",5,1,5]
["5, 2",5,2,4]
["5, 3",5,3,4]
["5, 4",5,4,4]
["5, 5",5,5,3]

{"sheet":"ABC Modul","index":3,"n_rows":29,"n_cols":3,"rows_kept":29,"cut":false,"hidden":false,"merged":[]}
[1,2,{"$f":"VC(A1,B1)","v":"2"}]
[1,1,{"$f":"VC(A2,B2)","v":"3"}]
[5,4,"4"]
[5,5,"3"]
[null,null,0]
[null,null,0]
[null,null,0]
[null,null,0]
[null,null,0]
[null,null,0]
[null,null,0]
[null,null,0]
[null,null,0]
[null,null,0]
[null,null,0]
[null,null,0]
[null,null,0]
[null,null,0]
[null,null,0]
[null,null,0]
[null,null,0]
[null,null,0]
[null,null,0]
[null,null,0]
[null,null,0]
[null,null,0]
[null,null,0]
[null,null,0]
[null,null,0]